bitfinex-derivatives/quotes_ETHF0:USTF0_20250116
["timestamp","ask_amount","ask_price","bid_price","bid_amount"]
[1737068400403,1.1313,3298.3,3298.2,4.16201332]
[1737068400597,1.73776,3298.3,3298.2,1.214]
[1737068400797,1.1313,3298.3,3298.0,1.214]
[1737068401100,0.6065,3298.1,3298.0,1.214]
[1737068401689,1.51625,3298.1,3297.5,2.94813332]
[1737068401895,0.60654,3297.9,3297.5,3.55553332]
[1737068402095,1.1313,3298.3,3297.7,0.60656]
[1737068402303,1.69446,3297.8,3297.6,0.60658]
[1737068402607,1.72397,3297.7,3297.6,0.60658]
[1737068402806,1.72397,3297.7,3297.5,3.55553332]
[1737068403101,1.72397,3297.7,3297.5,4.16213332]
[1737068403397,1.1174,3297.7,3297.5,3.55553332]
[1737068403603,1.1174,3297.7,3297.5,4.16213332]
[1737068404099,1.1174,3297.7,3297.5,3.55553332]
[1737068404507,1.1174,3297.7,3297.6,0.60659]
[1737068404806,1.1174,3297.7,3297.5,3.55553332]
[1737068404992,1.1174,3297.7,3297.5,4.16212332]
[1737068405197,1.1174,3297.7,3297.6,0.60659]
[1737068406007,1.0879,3297.8,3297.7,0.60657]
[1737068406196,1.1845,3298.1,3298.0,0.60651]
[1737068406501,1.1313,3298.3,3298.2,0.60648]
[1737068406706,2.92971,3298.6,3298.3,0.60645]
[1737068407006,2.92971,3298.6,3298.4,0.60644]
[1737068407200,2.92971,3298.6,3298.3,2.34153332]
[1737068407201,0.60651,3298.0,3297.9,3.2078]
[1737068407400,3.2078,3298.3,3297.7,2.34153332]
[1737068407706,1.79104,3297.9,3297.7,2.94809332]
[1737068407895,0.60655,3297.8,3297.7,2.34153332]
[1737068408096,1.1845,3297.9,3297.8,0.60655]
[1737068408301,1.1845,3297.9,3297.7,2.34153332]
[1737068408501,1.79104,3297.9,3297.7,2.34153332]
[1737068408703,1.1845,3297.9,3297.7,2.34153332]
[1737068408902,1.79104,3297.9,3297.7,2.94810332]
[1737068409599,1.1845,3297.9,3297.7,2.34153332]
[1737068409804,1.79104,3297.9,3297.7,2.94809332]
[1737068410402,1.1085,3297.8,3297.7,2.94809332]
[1737068410603,1.1845,3297.9,3297.7,2.34153332]
[1737068410810,2.2364,3298.2,3297.7,2.34153332]
[1737068411105,1.1085,3298.2,3298.1,2.94803332]
[1737068412415,1.123,3298.7,3298.1,2.34153332]
[1737068412610,1.1996,3298.9,3298.8,0.60637]
[1737068412802,1.1996,3298.9,3298.7,0.60637]
[1737068413010,1.80596,3298.9,3298.7,0.60637]
[1737068413602,1.80596,3298.9,3298.7,0.60639]
[1737068413798,1.1996,3298.9,3298.8,0.60637]
[1737068414310,3.2078,3299.2,3299.1,0.60631]
[1737068414506,1.1735,3299.5,3299.1,3.55553332]
[1737068414704,1.1735,3299.5,3299.3,0.60626]
[1737068415107,1.1735,3299.5,3299.1,3.55553332]
[1737068415719,0.60629,3299.2,3299.1,3.55553332]
[1737068416012,5.89693,3299.5,3298.8,5.54933332]
[1737068416208,4.4063,3299.1,3298.5,2.34153332]
[1737068416405,0.6064,3298.6,3298.5,2.34153332]
[1737068416907,0.60642,3298.5,3298.4,1.214]
[1737068417103,2.97842,3298.5,3298.4,1.214]
[1737068417403,2.97842,3298.5,3298.2,2.34153332]
[1737068417404,2.372,3298.5,3297.9,2.34153332]
[1737068417606,0.60651,3298.0,3297.9,2.34153332]
[1737068418016,1.51618,3298.3,3297.7,1.214]
[1737068418207,0.60655,3297.8,3297.7,1.214]
[1737068418506,0.60655,3297.8,3297.2,2.34153332]
[1737068418507,0.60664,3297.3,3297.2,2.34153332]
[1737068418708,0.60666,3297.2,3297.1,1.214]
[1737068421415,0.6067,3297.0,3296.9,2.34153332]
[1737068421605,1.1822,3297.3,3296.9,2.34153332]
[1737068422011,3.2078,3297.4,3297.2,2.94818332]
[1737068422212,4.7187176,3297.7,3297.2,2.34153332]
[1737068422415,3.5272176,3297.7,3297.6,2.94812332]
[1737068422613,3.5272176,3297.7,3297.6,4.16212332]
[1737068423120,3.5272176,3297.7,3297.6,48.16992332]
[1737068423314,4.05198,3298.2,3297.9,0.60653]
[1737068423520,4.05198,3298.2,3298.1,2.34153332]
[1737068423717,3.4455,3298.2,3298.1,2.34153332]
[1737068424217,4.05198,3298.2,3298.1,2.34153332]
[1737068425322,3.4455,3298.2,3298.1,2.34153332]
[1737068425518,4.05198,3298.2,3298.1,2.34153332]
[1737068426111,3.4455,3298.2,3298.1,2.34153332]
[1737068426315,3.4455,3298.2,3298.1,2.94803332]
[1737068426725,3.4455,3298.2,3298.1,2.34153332]
[1737068427423,3.4455,3298.2,3298.1,2.94803332]
[1737068429422,2.3006,3298.2,3298.1,2.94803332]
[1737068431315,4.7130176,3298.7,3298.4,0.60643]
[1737068431524,0.60643,3298.5,3298.1,2.34153332]
[1737068432524,0.60643,3298.5,3298.4,0.60644]
[1737068433031,2.86301,3298.6,3298.5,0.60642]
[1737068434328,2.2566,3298.6,3298.5,0.60642]
[1737068434526,5.7838176,3298.6,3298.5,0.60642]
[1737068434729,6.3902176,3298.6,3298.5,0.60642]
[1737068436030,2.863,3298.6,3298.5,0.60642]
[1737068436229,2.2566,3298.6,3298.5,0.60642]
[1737068436832,2.863,3298.6,3298.5,0.60642]
[1737068437431,2.2566,3298.6,3298.5,0.60642]
[1737068439130,2.863,3298.6,3298.4,4.16196332]
[1737068439726,0.60642,3298.5,3298.4,3.55553332]
[1737068439931,0.60648,3298.2,3298.1,2.34153332]
[1737068440132,4.72394,3298.4,3298.1,1.214]
[1737068440336,0.60648,3298.2,3298.1,1.214]
[1737068440637,0.60648,3298.2,3298.1,1.8205]
[1737068440832,0.60648,3298.2,3298.1,1.214]
[1737068445045,4.72252123,3298.3,3298.1,1.214]
[1737068445245,4.72252123,3298.3,3298.2,2.94801332]
[1737068446748,4.72252123,3298.3,3298.2,4.59481332]
[1737068447334,4.72252123,3298.3,3298.2,9.59481332]
[1737068447540,1.72032123,3298.3,3298.2,10.24581149]
[1737068447845,1.72032123,3298.3,3298.2,52.32884987]
[1737068448040,5.91415677,3298.5,3298.2,51.72236987]
[1737068448239,3.2078,3299.0,3298.9,0.60635]
[1737068448438,3.2078,3299.0,3298.9,4.16188332]
[1737068448648,3.2078,3299.0,3298.9,3.55553332]
[1737068448844,0.60633,3299.0,3298.9,44.35553332]
[1737068449148,0.60637,3298.8,3298.7,1.214]
[1737068449343,0.60644,3298.4,3298.3,2.34153332]
[1737068449641,6.5123,3298.7,3298.2,1.214]
[1737068449841,0.60646,3298.3,3298.2,1.214]
[1737068450637,1.51602,3298.6,3298.0,2.34153332]
[1737068450638,1.5161,3298.5,3298.0,3.55553332]
[1737068450839,0.6065,3298.1,3298.0,3.55553332]
[1737068451044,0.6065,3298.1,3298.0,4.16204332]
[1737068451245,0.60649,3298.2,3298.0,3.55553332]
[1737068451646,0.60649,3298.2,3298.0,4.16203332]
[1737068452154,0.60648,3298.2,3298.1,0.60649]
[1737068452550,0.60649,3298.2,3298.0,4.16203332]
[1737068452946,0.6065,3298.1,3298.0,3.55553332]
[1737068453352,0.6065,3298.1,3298.0,2.34153332]
[1737068453653,0.60656,3297.8,3297.7,3.55453332]
[1737068456051,0.60656,3297.8,3297.7,2.34153332]
[1737068459455,4.15067339,3297.8,3297.7,2.34153332]
[1737068460468,3.54411339,3297.8,3297.7,2.94810332]
[1737068464763,0.60655,3297.8,3297.7,2.34153332]
[1737068468165,9.28135566,3298.0,3297.7,2.34153332]
[1737068468468,7.04535566,3298.0,3297.9,0.60653]
[1737068468960,1.1385,3298.0,3297.9,0.60653]
[1737068469758,5.90685566,3298.2,3298.1,0.6065]
[1737068469959,5.90685566,3298.2,3298.1,6.15583332]
[1737068470358,5.90685566,3298.2,3298.1,46.95583332]
[1737068470654,5.90685566,3298.4,3298.3,0.60646]
[1737068470857,5.90685566,3298.4,3298.3,1.82046]
[1737068471961,8.26959792,3299.0,3298.5,0.60642]
[1737068471962,3.55199589,3298.6,3298.5,0.60642]
[1737068472166,3.43105413,3298.6,3298.5,6.15575332]
[1737068472357,3.43105413,3298.6,3298.5,11.15575332]
[1737068472554,3.43105413,3298.6,3298.5,6.15575332]
[1737068473363,7.08822679,3299.4,3298.5,11.82266952]
[1737068473364,0.60627,3299.4,3298.5,11.82266952]
[1737068473563,0.60627,3299.4,3299.3,2.34153332]
[1737068474267,6.14245,3299.5,3299.3,2.94781332]
[1737068474568,0.60626,3299.4,3299.3,2.34153332]
[1737068476466,1.1825,3299.5,3299.4,0.60626]
[1737068482565,1.1825,3299.5,3299.3,2.94779332]
[1737068482869,0.60626,3299.4,3299.3,2.34153332]
[1737068483274,0.60626,3299.4,3299.3,3.55453332]
[1737068485475,0.60626,3299.4,3299.3,2.34153332]
[1737068485974,1.1825,3299.5,3299.1,1.213]
[1737068486166,0.60626,3299.4,3299.3,2.34153332]
[1737068487372,0.60626,3299.4,3298.8,3.2078]
[1737068487373,1.1825,3299.5,3298.8,3.2078]
[1737068487571,0.60631,3299.1,3299.0,2.34153332]
[1737068488484,0.60631,3299.1,3299.0,2.94786332]
[1737068488674,0.60631,3299.1,3299.0,2.34153332]
[1737068489176,0.60631,3299.1,3299.0,2.94786332]
[1737068489377,0.60631,3299.1,3299.0,2.34153332]
[1737068490179,0.60631,3299.1,3299.0,2.94786332]
[1737068490485,1.78009,3299.2,3299.1,0.60631]
[1737068490780,0.60631,3299.1,3299.0,2.34153332]
[1737068491485,0.60631,3299.1,3299.0,2.94786332]
[1737068491681,1.1738,3299.2,3299.0,2.94786332]
[1737068492077,1.1738,3299.2,3299.0,2.34153332]
[1737068492285,1.1738,3299.2,3299.1,0.60631]
[1737068492885,1.1738,3299.2,3299.1,41.40631]
[1737068494686,4.99655,3299.5,3299.4,0.60626]
[1737068494878,4.99655,3299.5,3299.4,2.94779332]
[1737068495881,4.3903,3299.5,3299.4,2.94779332]
[1737068496280,4.3903,3299.5,3299.4,0.60626]
[1737068497184,4.3903,3299.5,3299.3,2.34153332]
[1737068497390,4.3903,3299.5,3299.3,2.94780332]
[1737068497784,4.99655,3299.5,3299.3,2.34153332]
[1737068497979,4.99655,3299.5,3299.4,0.60626]
[1737068498286,4.3903,3299.5,3299.4,0.60626]
[1737068498481,5.5927,3299.5,3299.4,41.40626]
[1737068499184,2.3849,3299.5,3299.4,41.40626]
[1737068500383,2.3849,3299.5,3299.4,0.60626]
[1737068500784,3.2078,3299.9,3299.3,2.34153332]
[1737068500993,3.81397,3299.9,3299.8,2.94771332]
[1737068501190,1.155,3300.0,3299.9,0.60617]
[1737068501390,5.92675919,3300.3,3300.2,0.60611]
[1737068501391,4.72435919,3300.3,3300.2,0.60611]
[1737068501588,4.72435919,3300.3,3300.2,2.94764332]
[1737068502384,1.155,3300.7,3300.2,2.94764332]
[1737068502693,4.72435919,3301.1,3301.0,0.60596]
[1737068502889,5.91945919,3301.1,3301.0,1.213]
[1737068503088,6.52540919,3301.1,3301.0,3.55453332]
[1737068503484,9.73320919,3301.1,3301.0,1.213]
[1737068503901,0.60598,3300.9,3300.8,3.55453332]
[1737068504287,0.60598,3300.9,3300.8,44.35453332]
[1737068504698,0.60598,3300.9,3300.8,3.55453332]
[1737068507694,0.6085049,3300.9,3300.8,3.55453332]
[1737068508986,0.6085049,3300.9,3300.8,4.16053332]
[1737068509599,0.6085049,3300.9,3300.8,3.55453332]
[1737068509997,0.6085049,3300.9,3300.8,4.16053332]
[1737068510299,0.6085049,3300.9,3300.8,3.55453332]
[1737068515597,0.0025249,3300.9,3300.8,4.16053332]
[1737068515790,0.6085049,3300.9,3300.8,4.16053332]
[1737068517194,0.0025249,3300.9,3300.8,4.16053332]
[1737068520607,2.35439671,3301.5,3300.8,11.76233332]
[1737068520811,2.35439671,3301.6,3301.5,0.60587]
[1737068521103,1.16040383,3301.6,3301.5,1.81787]
[1737068521306,1.16040383,3301.6,3301.5,43.72187]
[1737068522204,2.1949,3302.2,3301.5,43.116]
[1737068522405,0.60583,3301.8,3301.6,0.60585]
[1737068522597,2.1949,3302.2,3301.7,3.55353332]
[1737068522797,2.1949,3302.2,3301.8,0.60581]
[1737068522997,0.6058,3301.9,3301.8,0.60581]
[1737068523206,2.1949,3302.2,3301.7,3.55353332]
[1737068523411,0.60579,3302.0,3301.8,0.60582]
[1737068523600,2.1949,3302.2,3301.8,0.60582]
[1737068523801,0.6058,3301.9,3301.8,0.60582]
[1737068524006,0.6058,3301.9,3301.7,1.212]
[1737068524204,0.6058,3301.9,3301.8,0.60582]
[1737068524401,2.1949,3302.2,3301.8,0.60582]
[1737068524596,2.80064,3302.2,3302.1,2.34153332]
[1737068525703,2.1949,3302.2,3302.1,2.94729332]
[1737068526003,2.1949,3302.2,3302.1,2.34153332]
[1737068526505,2.1949,3302.2,3302.1,2.94729332]
[1737068527707,2.80064,3302.2,3302.1,2.94729332]
[1737068528109,2.1949,3302.2,3302.1,2.94729332]
[1737068529103,2.80064,3302.2,3302.1,2.94729332]
[1737068531711,2.1949,3302.2,3302.1,2.94729332]
[1737068531904,1.1388,3302.4,3302.3,0.60573]
[1737068532110,3.2078,3302.6,3302.1,2.34153332]
[1737068532306,3.2078,3302.6,3302.5,2.94722332]
[1737068532500,3.2078,3302.6,3302.5,44.95922332]
[1737068534113,3.2078,3302.6,3302.5,44.35353332]
[1737068534309,3.81347,3302.6,3302.5,2.34153332]
[1737068536223,1.1609,3302.7,3302.5,2.94722332]
[1737068536409,3.52491153,3303.6,3302.6,3.2078]
[1737068536614,3.52491153,3303.6,3303.5,2.94704332]
[1737068536911,6.94205919,3303.7,3303.6,0.60549]
[1737068537106,6.94205919,3303.7,3303.6,41.40549]
[1737068538109,2.2177,3303.7,3303.6,41.40549]
[1737068538312,1.0637,3303.9,3303.6,40.8]
[1737068538511,7.75045919,3305.1,3303.8,2.34153332]
[1737068538512,2.1974,3304.1,3303.8,2.34153332]
[1737068538819,2.1974,3304.1,3304.0,2.94694332]
[1737068539113,2.1974,3304.1,3304.0,43.74694332]
[1737068539311,2.1974,3304.1,3304.0,43.14153332]
[1737068539517,2.8028,3304.1,3304.0,40.8]
[1737068540711,2.1974,3304.1,3304.0,40.8]
[1737068541513,2.1974,3304.1,3304.0,41.40541]
[1737068542705,2.8028,3304.1,3303.9,2.94695332]
[1737068542908,0.60541,3304.0,3303.9,2.34153332]
[1737068543111,2.1974,3304.1,3303.7,2.34153332]
[1737068543112,0.60545,3303.8,3303.7,2.34153332]
[1737068543309,5.4052,3304.1,3303.3,2.34153332]
[1737068543518,0.60558,3303.1,3303.0,2.34153332]
[1737068544412,1.0968,3303.3,3303.2,0.60556]
[1737068544813,1.0968,3303.3,3303.1,1.0333]
[1737068544814,1.0968,3303.3,3303.1,1.63886]
[1737068545115,1.0968,3303.3,3303.2,0.60556]
[1737068545421,1.0968,3303.3,3303.1,1.0333]
[1737068545621,0.60556,3303.2,3303.1,1.0333]
[1737068545814,0.60558,3303.1,3303.0,43.14153332]
[1737068546320,2.83657,3303.2,3303.0,43.14153332]
[1737068546514,1.0968,3303.3,3303.1,0.60558]
[1737068547219,1.0968,3303.3,3303.0,43.14153332]
[1737068547517,0.60558,3303.1,3303.0,43.14153332]
[1737068547715,0.60558,3303.1,3303.0,40.8]
[1737068553215,2.2883,3303.2,3302.5,2.34153332]
[1737068553422,0.60567,3302.6,3302.5,2.34153332]
[1737068553724,0.60567,3302.6,3302.5,43.14153332]
[1737068554122,0.60567,3302.6,3302.5,43.74722332]
[1737068554431,0.60564,3302.9,3302.8,0.60562]
[1737068554621,0.6056,3303.0,3302.9,2.34153332]
[1737068555125,0.6056,3303.0,3302.9,43.14153332]
[1737068557529,3.2078,3303.1,3302.4,1.211]
[1737068557729,0.60569,3302.5,3302.4,2.34153332]
[1737068558026,0.60569,3302.5,3302.4,44.35253332]
[1737068559628,0.60569,3302.5,3302.4,40.8]
[1737068560317,0.60569,3302.5,3302.4,43.14153332]
[1737068560922,0.60569,3302.5,3302.4,43.74724332]
[1737068561323,4.2397,3302.7,3302.4,43.14153332]
[1737068561523,4.2397,3302.7,3302.6,0.60567]
[1737068561722,1.0319,3302.7,3302.6,0.60567]
[1737068562325,0.60565,3302.7,3302.6,0.60567]
[1737068562823,7.70915919,3303.1,3302.4,43.14153332]
[1737068562824,0.60562,3303.0,3302.9,0.6056]
[1737068563022,0.60562,3303.0,3302.9,3.55253332]
[1737068568628,0.60562,3303.0,3302.9,4.53303332]
[1737068568831,1.0017,3303.1,3302.9,4.53303332]
[1737068569131,0.6056,3303.0,3302.9,5.13863332]
[1737068569437,3.5237025,3303.4,3303.3,0.60554]
[1737068569736,0.8049025,3303.4,3303.3,5.28860664]
[1737068569923,4.01406169,3303.6,3303.5,0.60551]
[1737068570128,3.8041044,3303.6,3303.5,41.40551]
[1737068570332,0.60533,3304.5,3303.8,0.60545]
[1737068570333,3.8041044,3303.9,3303.8,0.60545]
[1737068570531,3.8041044,3303.9,3303.8,5.02425]
[1737068570930,3.8041044,3303.9,3303.8,1.81645]
[1737068571130,3.8041044,3303.9,3303.8,5.02425]
[1737068571337,5.90685566,3304.1,3304.0,0.60541]
[1737068571933,0.60535,3304.4,3303.8,1.211]
[1737068571934,0.60535,3304.4,3304.2,0.60537]
[1737068572131,5.3064,3304.6,3303.8,1.211]
[1737068572332,0.60537,3304.3,3304.1,0.60538]
[1737068572639,0.60536,3304.3,3304.2,2.34153332]
[1737068574538,0.60536,3304.3,3304.2,2.94691332]
[1737068575035,0.60536,3304.3,3304.2,2.34153332]
[1737068575235,0.60536,3304.3,3304.2,2.94691332]
[1737068575937,0.60536,3304.3,3304.2,2.34153332]
[1737068576136,0.60536,3304.3,3304.2,2.94691332]
[1737068576942,0.60535,3304.4,3304.3,0.60535]
[1737068577143,5.3064,3304.6,3304.2,2.34153332]
[1737068577339,3.2078,3304.5,3303.8,1.211]
[1737068577542,0.60539,3304.2,3304.1,0.60539]
[1737068578039,3.2078,3304.5,3304.1,0.60539]
[1737068578238,3.2078,3304.5,3304.0,2.34153332]
[1737068578645,0.60537,3304.3,3304.2,0.60537]
[1737068579042,0.60537,3304.3,3304.0,2.34153332]
[1737068579043,3.2078,3304.5,3304.0,2.34153332]
[1737068579239,0.60535,3304.4,3304.3,2.34153332]
[1737068579439,0.60535,3304.4,3304.3,2.94689332]
[1737068579641,0.60535,3304.4,3304.3,2.34153332]
[1737068580146,0.60535,3304.4,3304.3,2.94689332]
[1737068581039,0.60535,3304.4,3304.3,2.34153332]
[1737068581250,0.60535,3304.4,3304.3,2.94689332]
[1737068582146,0.60535,3304.4,3304.3,2.34153332]
[1737068583852,3.81315,3304.4,3304.3,2.34153332]
[1737068584546,3.2078,3304.4,3304.3,2.34153332]
[1737068584855,2.70391,3304.6,3304.5,0.60532]
[1737068585050,2.70391,3304.6,3304.5,1.81532]
[1737068585350,2.70391,3304.6,3304.5,42.01]
[1737068585848,1.064,3304.6,3304.5,42.61532]
[1737068586144,6.51208566,3305.0,3304.5,42.61532]
[1737068586145,5.90685566,3305.0,3304.9,0.60525]
[1737068586348,5.90685566,3305.0,3304.9,2.94678332]
[1737068586551,8.57513566,3305.3,3305.2,0.60519]
[1737068586850,5.90685566,3305.3,3305.2,4.15672332]
[1737068587551,5.90685566,3305.3,3305.2,48.16452332]
[1737068588145,1.0571,3305.8,3305.2,48.16452332]
[1737068588344,3.2078,3305.5,3305.2,44.35153332]
[1737068588557,0.60518,3305.3,3305.2,44.35153332]
[1737068588762,3.2078,3305.5,3305.2,44.35153332]
[1737068588963,3.81295,3305.5,3305.2,44.95671332]
[1737068589360,0.60516,3305.4,3305.3,1.21]
[1737068593461,3.81295,3305.5,3305.3,1.21]
[1737068593663,3.2078,3305.5,3305.3,1.21]
[1737068593859,0.60516,3305.4,3305.3,1.81517]
[1737068594361,3.2078,3305.5,3305.3,1.21]
[1737068594563,0.60516,3305.4,3305.3,1.81516]
[1737068594864,0.60516,3305.4,3305.3,1.21]
[1737068595568,3.81295,3305.5,3305.3,1.81517]
[1737068595867,0.60515,3305.5,3305.3,1.21]
[1737068596069,3.81293,3305.6,3305.4,0.60516]
[1737068596266,3.81293,3305.6,3305.5,2.34153332]
[1737068596267,0.60513,3305.6,3305.5,2.34153332]
[1737068596464,3.81293,3305.6,3305.5,2.34153332]
[1737068597164,1.0571,3305.8,3305.7,0.6051]
[1737068597568,1.0571,3305.8,3305.7,2.94663332]
[1737068597966,1.61664,3306.6,3306.4,0.60496]
[1737068598175,1.0117,3306.6,3306.5,3.55153332]
[1737068598374,1.98,3306.7,3306.5,3.55153332]
[1737068598573,1.0018,3306.7,3306.6,0.60494]
[1737068599266,1.0018,3306.7,3306.6,41.40494]
[1737068600266,1.0018,3306.7,3306.6,40.8]
[1737068600267,1.60672,3306.7,3306.6,40.8]
[1737068600468,4.81452,3306.7,3306.6,40.8]
[1737068600663,4.81452,3306.7,3306.6,42.01]
[1737068601072,1.60672,3306.7,3306.6,42.01]
[1737068601269,1.60672,3306.7,3306.6,1.21]
[1737068601875,1.0018,3306.7,3306.6,1.81494]
[1737068602270,1.0018,3306.7,3306.6,1.21]
[1737068602470,1.60672,3306.7,3306.6,1.21]
[1737068602670,1.0018,3306.7,3306.6,1.21]
[1737068602869,1.0018,3306.7,3306.6,1.81494]
[1737068603373,1.60672,3306.7,3306.6,1.21]
[1737068603684,4.81452,3306.7,3306.6,1.21]
[1737068608176,1.0018,3306.7,3306.6,42.01]
[1737068608376,1.0018,3306.7,3306.6,42.61494]
[1737068608777,1.0018,3306.7,3306.6,42.61394]
[1737068609285,1.60672,3306.7,3306.6,42.61394]
[1737068609579,1.60672,3306.7,3306.6,1.81394]
[1737068609988,1.60672,3306.7,3306.6,42.61394]
[1737068610285,1.60672,3306.7,3306.6,1.81394]
[1737068610486,1.0018,3306.7,3306.6,1.81394]
[1737068610781,0.60503,3306.2,3306.1,0.60503]
[1737068610979,0.60501,3306.2,3306.1,3.55053332]
[1737068611282,3.2078,3306.3,3305.6,1.209]
[1737068611283,0.6051,3305.7,3305.6,1.209]
[1737068611587,3.8129,3305.7,3305.6,1.209]
[1737068613181,3.8129,3305.7,3305.2,0.60518]
[1737068613182,3.2078,3305.7,3305.2,0.60518]
[1737068613383,3.2078,3305.7,3305.1,2.34153332]
[1737068613384,0.60519,3305.2,3305.1,2.34153332]
[1737068613687,3.2078,3305.3,3305.1,2.34153332]
[1737068613888,0.60519,3305.2,3305.1,2.34153332]
[1737068614386,1.64999,3305.2,3305.1,2.34153332]
[1737068614588,1.64999,3305.2,3305.1,43.14153332]
[1737068617188,1.64999,3305.2,3305.1,43.74674332]
[1737068617491,0.60514,3305.6,3305.5,0.60513]
[1737068617684,4.192,3305.7,3305.5,2.94666332]
[1737068617879,4.192,3305.7,3305.6,1.21]
[1737068617880,4.7971,3305.7,3305.6,1.21]
[1737068618087,4.7971,3305.7,3305.6,42.61512]
[1737068618293,4.192,3305.7,3305.6,42.61512]
[1737068618586,3.2078,3305.7,3305.6,42.61512]
[1737068619389,0.60506,3306.0,3305.9,0.60507]
[1737068619589,0.60506,3306.0,3305.9,2.94660332]
[1737068619987,0.60502,3306.2,3306.1,0.60502]
[1737068620295,2.68768,3306.4,3306.3,0.60499]
[1737068620490,2.68768,3306.4,3306.3,4.15652332]
[1737068620689,3.81277,3306.5,3306.4,0.60497]
[1737068620890,0.60497,3306.4,3306.3,4.15651332]
[1737068622497,3.81277,3306.5,3306.3,4.15651332]
[1737068622795,3.2078,3306.5,3306.4,0.60497]
[1737068623192,3.2078,3306.5,3306.3,3.55153332]
[1737068623387,3.2078,3306.5,3306.4,0.60497]
[1737068623893,3.2078,3306.5,3306.4,41.40497]
[1737068624391,3.2078,3306.5,3306.2,1.209]
[1737068624590,0.60499,3306.3,3306.2,1.209]
[1737068624890,0.60507,3305.9,3305.8,1.209]
[1737068625089,0.60514,3305.5,3305.4,2.34153332]
[1737068625283,0.60514,3305.5,3305.4,3.55053332]
[1737068625687,0.60514,3305.5,3305.4,44.35053332]
[1737068627192,0.60514,3305.5,3305.4,44.95569332]
[1737068627391,0.60514,3305.5,3305.4,44.35053332]
[1737068628098,3.81294,3305.5,3305.4,44.35053332]
[1737068628693,3.81294,3305.5,3305.4,43.14153332]
[1737068628991,8.2078,3305.5,3304.7,1.209]
[1737068629197,0.60527,3304.8,3304.7,1.209]
[1737068629586,0.60527,3304.8,3304.7,42.009]
[1737068630093,0.60541,3304.0,3303.9,2.34153332]
[1737068630292,0.60541,3304.0,3303.9,2.94695332]
[1737068630493,3.2078,3304.1,3303.9,43.74695332]
[1737068630696,3.81321,3304.1,3303.9,43.74695332]
[1737068631100,0.60541,3304.0,3303.9,43.74695332]
[1737068631297,0.60538,3304.2,3304.0,0.60541]
[1737068631895,3.2078,3304.1,3303.9,43.74695332]
[1737068632211,3.8132,3304.1,3304.0,2.34153332]
[1737068633304,3.2078,3304.1,3304.0,2.94694332]
[1737068633705,1.9886,3304.4,3304.0,2.34153332]
[1737068633901,1.58285,3304.4,3304.3,2.34153332]
[1737068634107,3.2078,3304.7,3304.3,2.34153332]
[1737068634303,0.60532,3304.6,3304.4,0.60534]
[1737068634505,0.60532,3304.6,3304.5,1.21]
[1737068634710,0.60532,3304.6,3304.5,42.01]
[1737068635008,4.14878649,3304.8,3304.6,0.6053]
[1737068635202,3.54351649,3304.8,3304.6,2.34153332]
[1737068635404,3.2078,3304.7,3304.5,42.01]
[1737068635600,0.6053,3304.6,3304.5,42.01]
[1737068639107,3.8131,3304.6,3304.5,42.01]
[1737068639406,0.6053,3304.6,3304.5,42.01]
[1737068639807,3.8131,3304.6,3304.5,42.01]
[1737068640312,0.6053,3304.6,3304.5,42.61532]
[1737068640901,3.8131,3304.6,3304.5,42.61532]
[1737068641607,3.8131,3304.6,3304.5,42.01]
[1737068641907,3.2078,3304.6,3304.5,41.40532]
[1737068642105,3.2078,3305.0,3304.5,44.35153332]
[1737068642304,3.2078,3305.0,3304.9,2.94678332]
[1737068643005,2.35899704,3305.1,3304.9,2.34153332]
[1737068643404,3.81303,3305.0,3304.9,2.34153332]
[1737068644113,0.60523,3305.0,3304.9,2.94678332]
[1737068645103,2.7396,3305.3,3304.9,2.34153332]
[1737068645304,3.34479,3305.3,3305.2,0.60519]
[1737068645512,3.34479,3305.3,3305.2,1.81519]
[1737068645704,3.34479,3305.3,3305.2,1.21]
[1737068646109,3.2078,3305.5,3305.2,1.21]
[1737068646307,0.60517,3305.4,3305.3,0.60518]
[1737068646707,0.60517,3305.4,3305.3,41.40518]
[1737068647906,0.60517,3305.4,3305.3,40.8]
[1737068654319,0.60517,3305.4,3305.3,41.40518]
[1737068654706,2.35899704,3305.5,3305.4,0.60516]
[1737068654903,0.46396238,3305.5,3305.4,5.02059974]
[1737068655105,5.90685566,3306.1,3305.8,0.60508]
[1737068655106,3.69365355,3305.9,3305.8,0.60508]
[1737068655312,2.12339008,3305.9,3305.8,8.49594664]
[1737068655510,2.8028612,3306.1,3306.0,0.60505]
[1737068655709,1.85230947,3306.1,3306.0,5.60505]
[1737068656011,5.45802533,3306.6,3306.5,0.60496]
[1737068656212,3.02814307,3306.6,3306.5,7.36429332]
[1737068656418,0.60473,3307.8,3306.7,1.5123]
[1737068656610,3.2078,3307.4,3306.7,3.2078]
[1737068656813,3.2078,3307.4,3307.3,2.34153332]
[1737068656814,0.60479,3307.4,3307.3,2.34153332]
[1737068657013,0.63616305,3307.4,3307.3,2.34153332]
[1737068657218,0.60481,3307.3,3307.2,43.14153332]
[1737068657518,0.7864,3307.3,3306.9,2.34153332]
[1737068657711,3.2078,3307.1,3306.3,4.7572762]
[1737068657912,3.81277,3306.4,3306.3,7.09880952]
[1737068658212,3.84414305,3306.4,3306.3,6.2e-06]
[1737068658412,8.23917305,3306.4,3305.7,9.51455241]
[1737068658619,3.81288,3305.8,3305.7,9.51455241]
[1737068659008,3.2078,3305.8,3305.5,0.60514]
[1737068659316,3.2078,3305.8,3305.2,1.209]
[1737068659317,0.63645305,3305.8,3305.7,2.34153332]
[1737068659512,3.84425305,3305.8,3305.7,2.34153332]
[1737068660107,0.03137305,3305.8,3305.7,2.34153332]
[1737068660316,0.03137305,3305.8,3305.7,2.94663332]
[1737068660508,0.03137305,3305.8,3305.7,2.34153332]
[1737068660714,0.63645305,3305.8,3305.7,2.34153332]
[1737068660915,0.63645305,3305.8,3305.7,43.14153332]
[1737068661415,0.03137305,3305.8,3305.7,43.14153332]